bitfinex-derivatives/quotes_BTCF0:USTF0_20241009
["timestamp","ask_amount","ask_price","bid_price","bid_amount"]
[1728482006299,0.480903,61848.0,61847.0,0.441705]
[1728482006698,0.480903,61848.0,61847.0,0.3608]
[1728482007217,0.481903,61848.0,61847.0,0.441705]
[1728482007591,0.121,61848.0,61847.0,0.441705]
[1728482007898,0.001,61848.0,61847.0,0.443705]
[1728482009276,0.14474101,61899.0,61847.0,0.443705]
[1728482009277,0.08088,61867.0,61847.0,1.808785]
[1728482009513,0.08088,61867.0,61857.0,0.3608]
[1728482009708,0.20088,61867.0,61857.0,0.3608]
[1728482010308,0.001,61863.0,61861.0,0.080886]
[1728482010507,0.121,61863.0,61861.0,0.080886]
[1728482011107,0.122,61863.0,61861.0,0.080886]
[1728482011296,0.122,61863.0,61862.0,0.080885]
[1728482011892,0.121,61863.0,61862.0,0.080885]
[1728482012095,0.12,61863.0,61862.0,0.080885]
[1728482013004,0.121,61863.0,61862.0,0.082885]
[1728482014204,0.122,61863.0,61862.0,0.096885]
[1728482015109,0.202884,61863.0,61862.0,0.016]
[1728482019327,0.122,61863.0,61862.0,0.016]
[1728482019544,0.122,61863.0,61862.0,0.096885]
[1728482027721,0.563684,61863.0,61862.0,0.016]
[1728482027917,0.637484,61863.0,61862.0,0.016]
[1728482028223,0.711584,61863.0,61862.0,0.016]
[1728482029308,0.711584,61863.0,61855.0,0.080894]
[1728482029515,0.19,61853.0,61852.0,0.097078]
[1728482029719,0.1,61853.0,61852.0,0.097078]
[1728482030112,0.29,61853.0,61852.0,0.097078]
[1728482030412,0.370897,61853.0,61852.0,0.161656]
[1728482030622,0.370897,61853.0,61852.0,0.097078]
[1728482030804,0.370897,61853.0,61852.0,0.16166133]
[1728482031019,0.373897,61853.0,61852.0,0.097078]
[1728482031223,0.373897,61853.0,61852.0,0.16166147]
[1728482031419,0.373897,61853.0,61852.0,0.01618]
[1728482031727,0.373897,61853.0,61852.0,0.097078]
[1728482032015,0.374897,61853.0,61852.0,0.097078]
[1728482033120,0.104,61853.0,61852.0,0.097078]
[1728482035318,0.004,61853.0,61852.0,0.097078]
[1728482036843,0.004,61853.0,61852.0,0.772118]
[1728482037223,0.004,61853.0,61852.0,1.372118]
[1728482038422,0.004,61853.0,61852.0,1.444618]
[1728482038825,0.0024255,61866.0,61852.0,1.444618]
[1728482038826,0.0024255,61866.0,61865.0,0.080881]
[1728482039023,0.1124255,61866.0,61865.0,0.080881]
[1728482039218,0.1933055,61866.0,61865.0,0.080881]
[1728482040031,0.1124255,61866.0,61865.0,0.080881]
[1728482040243,0.1134255,61866.0,61865.0,0.080881]
[1728482040432,0.1144255,61866.0,61865.0,0.081881]
[1728482041517,0.1953055,61866.0,61865.0,0.081881]
[1728482041728,0.1953055,61866.0,61865.0,0.001]
[1728482042029,0.1953055,61866.0,61856.0,0.080893]
[1728482042030,0.080892,61857.0,61856.0,0.080893]
[1728482042317,0.3,61857.0,61856.0,0.080893]
[1728482042518,0.11,61857.0,61856.0,0.080893]
[1728482043445,0.118,61857.0,61856.0,0.081893]
[1728482043722,0.118,61857.0,61856.0,0.442693]
[1728482043723,0.008,61857.0,61856.0,0.442693]
[1728482044727,0.008,61857.0,61856.0,0.49113747]
[1728482045024,0.008,61857.0,61856.0,0.442693]
[1728482046947,0.398892,61857.0,61856.0,0.442693]
[1728482047157,0.318,61857.0,61856.0,0.442693]
[1728482047338,0.128,61857.0,61856.0,0.442693]
[1728482047624,0.008,61857.0,61856.0,0.442693]
[1728482047817,0.108,61857.0,61856.0,0.442693]
[1728482049849,0.008,61857.0,61856.0,1.717693]
[1728482050349,0.008,61857.0,61856.0,1.16613747]
[1728482050940,0.008,61857.0,61856.0,1.117693]
[1728482051323,0.008,61857.0,61856.0,0.442693]
[1728482052332,0.008,61857.0,61856.0,1.717693]
[1728482052730,0.008,61857.0,61856.0,1.117693]
[1728482052915,0.008,61857.0,61856.0,0.632693]
[1728482053115,0.008,61857.0,61856.0,1.76613747]
[1728482053540,0.008,61857.0,61856.0,1.117693]
[1728482054030,0.008,61857.0,61856.0,1.717693]
[1728482054643,0.008,61857.0,61856.0,1.117693]
[1728482055239,0.0038,61871.0,61870.0,0.080875]
[1728482055446,0.03124304,61871.0,61870.0,0.992475]
[1728482055641,0.03960777,61878.0,61870.0,2.153755]
[1728482055849,1.5,61885.0,61884.0,0.080856]
[1728482056036,1.6496037,61885.0,61884.0,0.080856]
[1728482056246,1.7304587,61885.0,61884.0,0.080856]
[1728482056754,1.690855,61885.0,61884.0,0.080856]
[1728482056923,0.080864,61878.0,61877.0,0.441665]
[1728482057125,0.270864,61878.0,61877.0,0.3608]
[1728482057320,0.370864,61878.0,61877.0,0.3608]
[1728482057527,0.370864,61878.0,61877.0,0.441666]
[1728482058222,0.29,61878.0,61877.0,0.441666]
[1728482058425,0.1,61878.0,61877.0,0.441666]
[1728482058726,0.180864,61878.0,61877.0,0.441666]
[1728482058939,0.1,61878.0,61877.0,0.441666]
[1728482059237,0.19,61882.0,61881.0,0.08086]
[1728482059441,0.1,61882.0,61881.0,0.08086]
[1728482059732,1.50288,61885.0,61881.0,0.08086]
[1728482059929,1.6,61885.0,61884.0,0.080856]
[1728482062275,1.602,61885.0,61884.0,0.080856]
[1728482062729,1.603,61885.0,61884.0,0.080856]
[1728482063033,1.601,61885.0,61884.0,0.080856]
[1728482063236,1.603,61885.0,61884.0,0.080856]
[1728482063443,1.603,61885.0,61880.0,0.08086]
[1728482063444,0.08086,61882.0,61880.0,0.08086]
[1728482063628,0.27086,61881.0,61880.0,0.08086]
[1728482063837,0.38086,61881.0,61880.0,0.08086]
[1728482065634,0.38086,61881.0,61880.0,0.08286]
[1728482066331,0.79609513,61881.0,61871.0,0.00242408]
[1728482066535,0.270868,61875.0,61874.0,0.08087]
[1728482066838,0.3,61875.0,61871.0,0.08329708]
[1728482067040,0.1529,61874.0,61873.0,0.080871]
[1728482067336,0.1529,61874.0,61871.0,0.00242408]
[1728482067337,0.080872,61872.0,61871.0,0.08329608]
[1728482067523,0.200872,61872.0,61871.0,0.08329608]
[1728482068142,0.561672,61872.0,61871.0,0.08329608]
[1728482068434,0.4808,61872.0,61871.0,0.08329608]
[1728482068736,0.12,61872.0,61871.0,0.08629608]
[1728482068939,0.19085518,61872.0,61871.0,0.08629608]
[1728482069330,0.19185518,61872.0,61871.0,0.08629608]
[1728482069737,0.001,61872.0,61871.0,1.17217608]
[1728482069934,0.03124143,61877.0,61871.0,1.17217708]
[1728482070238,1.50084,61885.0,61884.0,0.080856]
[1728482070542,0.11,61885.0,61884.0,0.080856]
[1728482070939,1.61,61885.0,61884.0,0.080856]
[1728482071135,1.65963912,61885.0,61884.0,0.080856]
[1728482071355,1.74049412,61885.0,61884.0,0.080856]
[1728482071651,1.65963912,61885.0,61884.0,0.080856]
[1728482071824,1.74049412,61885.0,61884.0,0.080856]
[1728482072029,1.74149626,61885.0,61884.0,0.080856]
[1728482073133,1.80558657,61885.0,61884.0,0.080856]
[1728482073532,1.80758657,61885.0,61884.0,0.080856]
[1728482073945,1.613,61885.0,61884.0,0.080856]
[1728482075443,0.113,61885.0,61884.0,0.080856]
[1728482075959,0.003,61885.0,61884.0,0.565616]
[1728482076162,1e-06,61885.0,61884.0,1.241416]
[1728482076336,1e-06,61885.0,61884.0,1.319216]
[1728482076641,1e-06,61885.0,61884.0,0.735396]
[1728482077031,0.00242505,61887.0,61884.0,0.735396]
[1728482077242,0.00242505,61887.0,61886.0,0.441654]
[1728482077949,0.00242505,61887.0,61886.0,1.526414]
[1728482078453,1.5,61895.0,61886.0,1.526414]
[1728482078454,1.5,61895.0,61894.0,0.080843]
[1728482078749,1.61,61895.0,61894.0,0.270843]
[1728482078951,1.61,61895.0,61894.0,0.080843]
[1728482079142,1.690842,61895.0,61894.0,0.080843]
[1728482080039,1.611,61895.0,61894.0,0.085843]
[1728482080241,1.501,61895.0,61894.0,0.085843]
[1728482080442,0.001,61895.0,61894.0,0.085843]
[1728482080642,0.080829,61906.0,61905.0,0.080826]
[1728482080848,1.72205857,61906.0,61905.0,0.080826]
[1728482081557,1.72205857,61906.0,61902.0,0.080832]
[1728482081558,0.080833,61903.0,61902.0,0.080832]
[1728482081747,0.11206257,61903.0,61902.0,0.080832]
[1728482082551,0.11206257,61903.0,61902.0,0.083832]
[1728482082746,1.7018568,61906.0,61902.0,0.003]
[1728482082949,0.11205922,61905.0,61904.0,0.080829]
[1728482083151,0.22205922,61905.0,61904.0,0.080829]
[1728482084247,0.48861322,61905.0,61904.0,0.080829]
[1728482085345,0.23044835,61905.0,61904.0,0.080829]
[1728482085539,0.23144835,61905.0,61904.0,0.080829]
[1728482085945,0.23044835,61905.0,61904.0,0.080829]
[1728482086150,0.23044835,61905.0,61904.0,0.084829]
[1728482086345,0.39347056,61905.0,61904.0,0.084829]
[1728482086549,0.39346568,61905.0,61904.0,0.084829]
[1728482086849,0.23244347,61905.0,61904.0,0.084829]
[1728482087035,0.23044347,61905.0,61904.0,0.084829]
[1728482087241,0.23044347,61905.0,61904.0,0.087829]
[1728482087547,0.28607471,61905.0,61904.0,0.083829]
[1728482087748,0.28607471,61905.0,61904.0,0.087829]
[1728482087749,0.23044347,61905.0,61904.0,0.087829]
[1728482087942,0.23144347,61905.0,61904.0,0.449629]
[1728482088140,0.18181958,61905.0,61904.0,0.445629]
[1728482088345,0.07281958,61905.0,61904.0,0.452629]
[1728482088842,0.07281958,61905.0,61904.0,0.454629]
[1728482089549,0.07181958,61905.0,61904.0,0.450629]
[1728482089745,0.07281958,61905.0,61904.0,0.454629]
[1728482090452,0.03322917,61905.0,61904.0,0.939229]
[1728482090850,0.03322917,61905.0,61904.0,1.129229]
[1728482091059,0.14484644,61914.0,61904.0,1.720229]
[1728482091361,0.14484644,61916.0,61915.0,0.080816]
[1728482091557,0.14958233,61916.0,61915.0,0.080816]
[1728482091952,0.19919658,61916.0,61915.0,0.080816]
[1728482092168,0.11,61916.0,61915.0,0.080816]
[1728482092357,1.50092,61919.0,61918.0,0.080812]
[1728482092561,1.6,61919.0,61918.0,0.080812]
[1728482092748,1.580811,61919.0,61918.0,0.080812]
[1728482092950,1.5,61919.0,61918.0,0.080812]
[1728482093748,1.504,61919.0,61918.0,0.080812]
[1728482094856,1.507,61919.0,61918.0,0.080812]
[1728482096550,1.697811,61919.0,61918.0,0.080812]
[1728482096764,2.058611,61919.0,61918.0,0.080812]
[1728482096970,0.080818,61916.0,61915.0,0.080815]
[1728482097159,0.200818,61916.0,61915.0,0.080815]
[1728482098156,0.12,61916.0,61915.0,0.080815]
[1728482098751,0.390815,61916.0,61915.0,0.080815]
[1728482099452,0.391815,61916.0,61915.0,0.080815]
[1728482100572,0.201815,61916.0,61915.0,0.080815]
[1728482100950,0.201815,61916.0,61913.0,0.3608]
[1728482101266,0.080817,61914.0,61913.0,0.3608]
[1728482101479,0.21204075,61914.0,61913.0,0.3608]
[1728482102163,0.21204075,61914.0,61902.0,0.01339804]
[1728482102355,0.21204075,61914.0,61909.0,0.080822]
[1728482102356,0.080823,61910.0,61909.0,0.080822]
[1728482102558,0.15122375,61910.0,61909.0,0.080822]
[1728482102760,0.03122375,61910.0,61909.0,0.270822]
[1728482103070,0.3608,61914.0,61913.0,0.080819]
[1728482103263,0.51202452,61914.0,61913.0,0.080819]
[1728482103960,0.15122452,61914.0,61913.0,0.443619]
[1728482104178,0.15122452,61914.0,61913.0,0.272819]
[1728482104363,0.03122452,61914.0,61913.0,0.272819]
[1728482105781,0.14484644,61923.0,61913.0,1.358379]
[1728482105974,0.006223,61925.0,61913.0,1.358379]
[1728482105975,0.002423,61925.0,61922.0,0.19]
[1728482106273,0.26063587,61932.0,61922.0,0.19]
[1728482106274,0.3314,61937.0,61924.0,0.3608]
[1728482106459,0.3276,61937.0,61933.0,0.270792]
[1728482106814,0.50793808,61934.0,61933.0,0.080792]
[1728482107084,0.86592756,61934.0,61933.0,0.080792]
[1728482107566,0.60793808,61934.0,61925.0,0.2633]
[1728482107873,0.080794,61932.0,61931.0,0.080795]
[1728482108161,0.26997112,61932.0,61931.0,0.080795]
[1728482108362,0.18917712,61932.0,61931.0,0.080795]
[1728482108865,0.20059297,61932.0,61931.0,0.080795]
[1728482109063,0.25019618,61932.0,61931.0,0.080795]
[1728482109961,0.08917712,61932.0,61931.0,0.080795]
[1728482110357,0.09017712,61932.0,61931.0,0.080795]
[1728482110562,0.09217712,61932.0,61931.0,0.080795]
[1728482110768,0.09217378,61932.0,61931.0,0.080795]
[1728482110970,0.09217378,61932.0,61921.0,0.156308]
[1728482110971,0.20217385,61932.0,61913.0,0.1938]
[1728482111158,0.20217385,61932.0,61928.0,0.080799]
[1728482111159,0.080798,61929.0,61928.0,0.080799]
[1728482111360,0.080801,61927.0,61925.0,0.080802]
[1728482111555,1.580802,61926.0,61925.0,0.080802]
[1728482111905,0.32424633,61926.0,61922.0,0.080806]
[1728482112070,0.080808,61921.0,61920.0,0.00242229]
[1728482112385,1.92038043,61921.0,61920.0,0.00242229]
[1728482112557,1.96998185,61921.0,61920.0,0.00242229]
[1728482112956,3.05446185,61921.0,61916.0,0.3608]
[1728482113166,0.19,61909.0,61908.0,0.084625]
[1728482113368,0.38918733,61909.0,61908.0,0.080825]
[1728482113584,0.080827,61907.0,61906.0,0.080828]
[1728482113758,0.47001433,61907.0,61906.0,0.080828]
[1728482114180,0.36001433,61907.0,61906.0,0.080828]
[1728482114357,0.52107533,61907.0,61906.0,0.080828]
[1728482114761,0.52107533,61907.0,61906.0,0.012]
[1728482114762,0.433888,61907.0,61906.0,0.012]
[1728482114995,0.272827,61907.0,61906.0,0.012]
[1728482115476,0.272827,61907.0,61906.0,0.092828]
[1728482115659,0.192,61907.0,61906.0,0.092828]
[1728482116962,0.002,61907.0,61906.0,0.092828]
[1728482117870,0.002,61907.0,61906.0,1.177428]
[1728482118572,0.03322518,61907.0,61906.0,1.177428]
[1728482119172,0.03322518,61907.0,61906.0,1.18878579]
[1728482119372,0.002,61907.0,61906.0,1.18878579]
[1728482121179,0.002,61907.0,61906.0,0.10418579]
[1728482122270,0.182826,61907.0,61906.0,0.092828]
[1728482122868,0.182826,61907.0,61906.0,0.012]
[1728482124279,0.667426,61907.0,61906.0,0.012]
[1728482124575,0.182826,61907.0,61906.0,0.012]
[1728482124972,0.30327188,61907.0,61906.0,0.012]
[1728482126165,0.78787188,61907.0,61906.0,0.012]
[1728482126873,0.30327188,61907.0,61906.0,0.012]
[1728482127975,0.080839,61897.0,61896.0,0.00242327]
[1728482128278,0.080855,61886.0,61885.0,0.080855]
[1728482128582,0.270855,61886.0,61885.0,0.080855]
[1728482129770,0.271855,61886.0,61885.0,0.086855]
[1728482130581,0.081855,61886.0,61885.0,0.086855]
[1728482131478,0.001,61886.0,61885.0,0.080855]
[1728482132279,0.003,61886.0,61885.0,0.080855]
[1728482133375,0.004,61886.0,61885.0,0.080855]
[1728482133991,0.001,61886.0,61885.0,0.080855]
[1728482134284,0.002,61886.0,61885.0,0.080855]
[1728482134680,0.3608,61887.0,61886.0,0.080854]
[1728482136002,0.3648,61887.0,61886.0,0.080854]
[1728482136179,0.445653,61887.0,61886.0,0.080854]
[1728482137276,0.441653,61887.0,61886.0,0.080854]
[1728482137478,0.445653,61887.0,61886.0,0.080854]
[1728482138082,0.555653,61887.0,61886.0,0.080854]
[1728482140085,0.551653,61887.0,61886.0,0.080854]
[1728482140280,0.555653,61887.0,61886.0,0.080854]
[1728482140887,0.080855,61885.0,61884.0,0.097036]
[1728482141087,0.190855,61885.0,61884.0,0.097036]
[1728482141282,0.11,61885.0,61884.0,0.097036]
[1728482142186,0.190855,61885.0,61884.0,0.01618]
[1728482142394,0.190855,61885.0,61884.0,0.080856]
[1728482143490,0.192855,61885.0,61884.0,0.080856]
[1728482143890,0.190855,61885.0,61884.0,0.080856]
[1728482144099,0.192855,61885.0,61884.0,0.080856]
[1728482145093,0.190855,61885.0,61884.0,0.080856]
[1728482145392,0.192855,61885.0,61884.0,0.080856]
[1728482146214,0.192855,61885.0,61880.0,0.0054]
[1728482146424,0.36086,61881.0,61880.0,0.0054]
[1728482146598,0.48086,61881.0,61880.0,0.0054]
[1728482147485,0.48086,61881.0,61880.0,0.0084]
[1728482147918,1.56566,61881.0,61880.0,0.0084]
[1728482148197,0.080871,61873.0,61872.0,0.00242401]
[1728482148400,0.831671,61873.0,61872.0,0.00242401]
[1728482148834,0.831671,61873.0,61872.0,0.08329601]
[1728482149409,0.831671,61873.0,61872.0,0.00242401]
[1728482149601,2.331671,61873.0,61872.0,0.00242401]
[1728482149895,2.339671,61873.0,61872.0,0.00242401]
[1728482150129,2.339671,61873.0,61872.0,0.08329601]
[1728482150792,2.343671,61873.0,61872.0,0.08329601]
[1728482151296,2.063671,61873.0,61872.0,0.08329601]
[1728482151601,1.8728,61873.0,61872.0,0.08329601]
[1728482151987,0.3728,61873.0,61872.0,0.08329601]
[1728482152719,0.4828,61873.0,61872.0,0.08329601]
[1728482153189,0.3728,61873.0,61872.0,0.08329601]
[1728482153583,0.3728,61873.0,61872.0,0.080872]
[1728482153788,0.012,61873.0,61872.0,1.165752]
[1728482154015,0.3608,61885.0,61881.0,0.08086]
[1728482154198,0.4208,61882.0,61881.0,0.08086]
[1728482154494,0.3608,61882.0,61881.0,0.08086]
[1728482155191,0.3618,61882.0,61881.0,0.08086]
[1728482156216,0.3608,61893.0,61892.0,0.080846]
[1728482156424,0.751645,61893.0,61892.0,0.080846]
[1728482156606,2.251645,61893.0,61892.0,0.080846]
[1728482157488,2.260645,61893.0,61892.0,0.081846]
[1728482158001,2.265645,61893.0,61892.0,0.081846]
[1728482158800,2.265645,61893.0,61892.0,0.001]
[1728482159425,2.29688118,61893.0,61892.0,0.001]
[1728482160298,2.29688118,61893.0,61892.0,0.081846]
[1728482160499,2.29688118,61893.0,61892.0,0.001]
[1728482160695,2.29688118,61893.0,61892.0,0.081846]
[1728482160999,2.29688118,61893.0,61892.0,0.001]
[1728482162003,0.080857,61885.0,61884.0,0.080856]
[1728482162192,0.390857,61885.0,61884.0,0.080856]
[1728482162597,0.390857,61885.0,61881.0,0.3608]
[1728482162598,0.31,61885.0,61881.0,0.3608]
[1728482162805,0.390856,61885.0,61884.0,0.080856]
[1728482163414,0.31,61885.0,61884.0,0.080856]
[1728482163614,0.001,61885.0,61884.0,0.270856]
[1728482164103,0.001,61885.0,61884.0,0.083856]
[1728482164610,0.0038,61897.0,61884.0,1.27776]
[1728482164911,0.0038,61897.0,61882.0,0.3608]
[1728482164912,0.0038,61901.0,61900.0,0.080836]
[1728482165112,0.0024239,61906.0,61904.0,0.08083]
[1728482165402,0.0024239,61906.0,61905.0,0.080829]
[1728482167555,0.0024239,61906.0,61905.0,0.084829]
[1728482167704,0.1124239,61906.0,61905.0,0.084829]
[1728482168017,0.1932519,61906.0,61905.0,0.004]
[1728482168215,0.1932519,61906.0,61894.0,0.0038]
[1728482168216,0.080834,61902.0,61894.0,0.0038]
[1728482168421,0.080842,61895.0,61894.0,0.080843]
[1728482168615,0.190842,61895.0,61894.0,0.080843]
[1728482169803,0.190842,61895.0,61894.0,0.081843]
[1728482169804,0.195842,61895.0,61894.0,0.081843]
[1728482170110,0.115,61895.0,61894.0,0.081843]
[1728482170602,0.114,61895.0,61894.0,0.080843]
[1728482170814,0.114,61895.0,61891.0,0.3608]
[1728482170998,0.080846,61893.0,61892.0,0.080846]
[1728482171319,0.11,61893.0,61891.0,0.3608]
[1728482171610,0.11,61893.0,61892.0,0.080846]
[1728482172528,0.005,61893.0,61892.0,1.355566]
[1728482172825,0.0024239,61906.0,61892.0,1.355566]
[1728482172826,0.080834,61902.0,61892.0,1.355566]
[1728482173019,0.080837,61900.0,61899.0,0.080834]
[1728482173400,0.080834,61902.0,61899.0,0.080834]
[1728482173709,0.180834,61902.0,61901.0,0.080834]
[1728482174407,0.21206439,61902.0,61897.0,0.3608]
[1728482174601,0.080838,61899.0,61898.0,0.080838]
[1728482174911,0.42206839,61899.0,61898.0,0.080838]
[1728482175125,1.73206839,61899.0,61898.0,0.080838]
[1728482175327,1.62,61899.0,61898.0,0.080838]
[1728482175700,1.65123076,61899.0,61898.0,0.080838]
[1728482175907,1.65123076,61899.0,61898.0,0.082838]
[1728482176606,1.73206776,61899.0,61898.0,0.082838]
[1728482177016,1.73406776,61899.0,61898.0,0.082838]
[1728482177508,1.73406776,61899.0,61898.0,0.084838]
[1728482177704,2.09486776,61899.0,61898.0,0.004]
[1728482178012,0.080846,61893.0,61892.0,0.080846]
[1728482178209,0.42207676,61893.0,61892.0,0.080846]
[1728482178809,0.080846,61892.0,61891.0,0.441647]
[1728482179011,0.22207676,61892.0,61891.0,0.441647]
[1728482179425,0.22208065,61892.0,61891.0,0.441647]
[1728482179807,0.22208065,61892.0,61891.0,0.3608]
[1728482180518,0.08085,61889.0,61886.0,0.080854]
[1728482180812,0.41208718,61889.0,61886.0,0.080854]
[1728482181211,0.08086,61881.0,61878.0,0.0012]
[1728482181426,0.08086,61881.0,61877.0,0.08328891]
[1728482181427,0.080864,61878.0,61877.0,0.08328891]
[1728482181718,0.080864,61878.0,61877.0,0.00242391]
[1728482182063,1.275704,61878.0,61877.0,0.00242391]
[1728482182810,1.637504,61878.0,61877.0,0.01042391]
[1728482183001,0.080876,61869.0,61868.0,0.0038]
[1728482183201,0.380876,61869.0,61868.0,0.080877]
[1728482183407,0.19,61873.0,61872.0,0.080872]
[1728482183616,0.080868,61876.0,61874.0,0.080869]
[1728482183817,0.080868,61875.0,61873.0,0.080871]
[1728482184016,0.08087,61874.0,61873.0,0.08087]
[1728482185815,0.08187,61874.0,61873.0,0.08687]
[1728482186516,0.001,61874.0,61873.0,0.08687]
[1728482186710,0.18187,61874.0,61873.0,0.08687]
[1728482187211,0.101,61874.0,61873.0,0.08687]
[1728482189116,0.18187,61874.0,61873.0,0.08687]
[1728482190105,0.18187,61874.0,61873.0,0.006]
[1728482190520,0.101,61874.0,61873.0,0.086871]
[1728482198036,0.18187,61874.0,61873.0,0.086871]
[1728482199922,0.18187,61874.0,61873.0,0.006]
[1728482207072,0.080881,61865.0,61864.0,0.01617]
[1728482207239,0.080886,61861.0,61858.0,0.08089]
[1728482207524,0.270889,61859.0,61858.0,0.08089]
[1728482207828,0.370889,61859.0,61858.0,0.08089]
[1728482208124,0.29,61859.0,61858.0,0.08089]
[1728482208727,0.370889,61859.0,61858.0,0.08289]
[1728482209335,0.29,61859.0,61858.0,0.08089]
[1728482209515,0.29,61859.0,61858.0,0.08289]
[1728482210118,0.291,61859.0,61858.0,0.08289]
[1728482211632,0.371889,61859.0,61858.0,0.08289]
[1728482211837,0.291,61859.0,61858.0,0.08289]
[1728482212331,0.101,61859.0,61858.0,0.08289]
[1728482216330,0.080879,61867.0,61858.0,1.27696]
[1728482216627,0.190879,61867.0,61866.0,0.08088]
[1728482216836,0.380879,61867.0,61866.0,0.08088]
[1728482217627,0.381879,61867.0,61866.0,0.08088]
[1728482218728,0.387879,61867.0,61866.0,0.08088]
[1728482218928,0.386879,61867.0,61866.0,0.08088]
[1728482219243,0.387879,61867.0,61866.0,0.08088]
[1728482219945,0.080884,61864.0,61863.0,0.080883]
[1728482220137,0.380884,61864.0,61863.0,0.080883]
[1728482220560,0.380884,61864.0,61859.0,0.12926914]
[1728482220561,0.080888,61861.0,61860.0,0.080887]
[1728482220733,0.370888,61861.0,61860.0,0.080887]
[1728482220934,0.370888,61861.0,61856.0,0.41034014]
[1728482220935,0.080892,61857.0,61856.0,0.00116]
[1728482221141,0.080892,61857.0,61852.0,0.06429829]
[1728482221142,0.080897,61853.0,61852.0,0.12927714]
[1728482221373,0.080897,61853.0,61852.0,0.080897]
[1728482221374,0.370897,61853.0,61852.0,0.080897]
[1728482221749,0.29,61853.0,61852.0,0.080897]
[1728482221965,0.1,61853.0,61852.0,0.080897]
[1728482222682,0.101,61853.0,61852.0,0.081897]
[1728482223142,0.102,61853.0,61852.0,0.081897]
[1728482224944,0.182897,61853.0,61852.0,0.081897]
[1728482225341,0.182897,61853.0,61852.0,0.001]
[1728482226642,0.101,61853.0,61852.0,0.081898]
[1728482226943,0.102,61853.0,61852.0,0.081898]
[1728482232063,0.182897,61853.0,61852.0,0.13027814]
[1728482232267,0.182897,61853.0,61852.0,0.081898]
[1728482232850,0.102,61853.0,61852.0,0.13027814]
[1728482233246,0.182897,61853.0,61852.0,0.13027814]
[1728482233753,0.102,61853.0,61852.0,0.13027814]
[1728482234757,0.102,61853.0,61852.0,0.081898]
[1728482239060,0.002,61853.0,61852.0,0.081898]
[1728482240156,0.0038,61865.0,61852.0,1.08604]
[1728482240368,0.19,61876.0,61852.0,1.08604]
[1728482240369,0.084678,61868.0,61867.0,0.080879]
[1728482240546,0.1,61868.0,61867.0,0.080879]
[1728482241561,0.1,61868.0,61861.0,0.0766]
[1728482241562,0.180877,61868.0,61861.0,0.0766]
[1728482241747,0.080888,61863.0,61862.0,0.080885]
[1728482241947,0.380888,61863.0,61862.0,0.080885]
[1728482242151,0.080885,61862.0,61858.0,0.0484616]
[1728482242448,0.270889,61859.0,61858.0,0.0484616]
[1728482242659,0.370889,61859.0,61858.0,0.1293516]
[1728482242855,0.1,61859.0,61858.0,0.1293516]
[1728482243750,0.101,61859.0,61858.0,0.1313516]
[1728482244362,0.101,61859.0,61858.0,0.1333516]
[1728482244552,0.181889,61859.0,61858.0,0.1333516]
[1728482245158,0.371889,61859.0,61858.0,0.1333516]
[1728482247055,0.371889,61859.0,61858.0,0.0524616]
[1728482247252,0.291,61859.0,61858.0,0.0524616]
[1728482247481,0.181889,61859.0,61858.0,0.1333516]
[1728482248056,0.371889,61859.0,61858.0,0.08489]
[1728482251365,0.371889,61859.0,61858.0,0.004]
[1728482252976,0.40314286,61859.0,61858.0,0.004]
[1728482253583,0.44276551,61859.0,61858.0,0.004]
[1728482253877,0.40314286,61859.0,61858.0,0.004]
[1728482254072,0.40814286,61859.0,61858.0,0.002]
[1728482254481,0.13725386,61859.0,61858.0,0.002]
[1728482254775,0.13625386,61859.0,61858.0,0.08089]
[1728482254981,0.13725386,61859.0,61858.0,0.08089]
[1728482255195,0.13725386,61859.0,61858.0,0.63169]
[1728482255380,0.03725386,61859.0,61858.0,0.63169]
[1728482256174,0.006,61859.0,61858.0,0.44169]
[1728482256474,0.03725075,61859.0,61858.0,0.44169]
[1728482256779,0.006,61859.0,61858.0,0.50630547]
[1728482257475,0.006,61859.0,61858.0,0.44169]
[1728482258097,0.0038,61870.0,61858.0,0.63169]
[1728482258322,0.0038,61870.0,61869.0,0.080876]
[1728482258323,0.12,61870.0,61869.0,0.080876]
[1728482259387,0.68924,61880.0,61879.0,0.080863]
[1728482259388,0.36164,61880.0,61879.0,0.080863]
[1728482259583,0.4608,61880.0,61879.0,0.080863]
[1728482259879,0.541662,61880.0,61879.0,0.080863]
[1728482260073,0.4608,61880.0,61879.0,0.080863]
[1728482260476,0.4608,61880.0,61879.0,0.270863]
[1728482260682,0.1,61880.0,61879.0,0.631663]
[1728482260884,0.00242484,61882.0,61881.0,0.08086]
[1728482261100,0.07242484,61882.0,61881.0,0.08086]
[1728482261346,0.00242484,61882.0,61881.0,0.08086]
[1728482262591,0.08328384,61882.0,61881.0,0.08086]
[1728482262784,0.08328384,61882.0,61881.0,0.08186]
[1728482263086,0.19,61884.0,61881.0,0.001]
[1728482263275,0.19,61884.0,61883.0,0.080858]
[1728482264399,0.5107,61893.0,61892.0,0.080846]
[1728482264400,0.781546,61893.0,61892.0,0.080846]
[1728482264601,0.823846,61893.0,61892.0,0.080846]
[1728482264786,0.85508335,61893.0,61892.0,0.080846]
[1728482265280,0.823846,61893.0,61892.0,0.080846]
[1728482265719,0.837845,61893.0,61892.0,0.001]
[1728482266283,0.847845,61893.0,61892.0,0.001]
[1728482267595,0.87908305,61893.0,61892.0,0.001]
[1728482269181,0.68908305,61893.0,61892.0,0.001]